Cogmind - Beta 14 @@@ ROGUE MODE // 2025.05.03 @ 22:19:09 Player: OctagonalPrism Result: Destroyed by Y-64 Sentinel with Wave Gun Performance ------------- Evolutions (4) 2000 Regions Visited (14) 2800 Robots Destroyed (86) 430 Value Destroyed (2534) 2534 Prototype IDs (32) 640 Alien Tech Used (0) 0 Bonus (2221) 2221 TOTAL SCORE: 10625 Bonus ------- High Alert Combat Kills 149 Follower Combat Kills 1272 A7 Reached Mainframe 300 Met R17 at Cetus 500 Cogmind --------- Core Integrity 0/850 Matter 270/300 Energy 290/290 System Corruption 6% Temperature Cool (9) Movement Hovering (116) Ox1 Location -6/Archives Parts ------- > --- POWER (1) -------- Improved Deuterium Engine > --- PROPULSION (3) --- Improved Hover Unit Gravmag System > --- UTILITY (9) ------ Small Storage Unit Improved Sensor Array Improved Signal Interpreter Utility Shielding Hacking Suite Hacking Suite Improved System Shield Corruption Screen Improved System Restoration Module > --- WEAPON (2) ------- Heavy Mace > --- INVENTORY (8) ---- Advanced Heat Sink Medium Battery (150) Improved Signal Interpreter Advanced Terrain Scanner Improved Propulsion Shielding Improved System Shield Heavy Laser Coil Gun Peak State ------------ > --- POWER ------------ Micro Fission Core > --- PROPULSION ------- Improved Gravmag System Improved Gravmag System Antigrav System > --- UTILITY ---------- Improved Sensor Array Advanced Signal Interpreter Advanced Terrain Scanner Utility Shielding Hacking Suite Hacking Suite Makeshift System Shield Improved System Shield Corruption Screen > --- WEAPON ----------- High-powered Shock Rifle Heavy Mace > --- INVENTORY -------- Heavy Deuterium Engine Small Storage Unit Medium Battery Improved Signal Interpreter Improved Propulsion Shielding [Rating: 64] Favorites ----------- Power Improved Ion Engine Engine Improved Ion Engine Power Core Micro Fission Core Propulsion Airjet Treads Improved Treads Wheel Wheel Hover Unit Airjet Flight Unit VTOL Module Utility Hacking Suite Device Improved Terrain Scanner Storage Small Storage Unit Processor Improved Signal Interpreter Hackware Hacking Suite Protection Utility Shielding Weapon Maul Energy Gun High-powered Shock Rifle Ballistic Gun Minigun Launcher Improved Proton Missile Launcher Impact Weapon Maul Build | -11 -10 -10 -9 -9 -9 -8 -8 -7 -7 -7 -6 -6 -6 -6 ------- Run | Yrd Mat Min Mat Min Exi Min Mat Fac Low Low Fac Ext Cet Arc Slots Evolved 8 | . . . 2 . . . 2 2 . . 2 . . . Power . | . . . . . . . . . . . . . . . Propulsion 1 | . . . . . . . 1 . . . . . . . Utility 7 | . . . 2 . . . 1 2 . . 2 . . . Weapon . | . . . . . . . . . . . . . . . Parts Attached 115 | 6 5 . 37 . 2 . 9 13 2 . 27 10 2 2 Power 12 | 1 . . 4 . . . 1 . . . 2 3 1 . Engine 10 | 1 . . 4 . . . 1 . . . . 3 1 . Core 2 | . . . . . . . . . . . 2 . . . Reactor . | . . . . . . . . . . . . . . . Propulsion 33 | 2 1 . 11 . 1 . 2 4 . . 8 2 1 1 Treads 3 | . . . 3 . . . . . . . . . . . Leg . | . . . . . . . . . . . . . . . Wheel 10 | 2 1 . 5 . . . . . . . 1 1 . . Hover 18 | . . . 3 . 1 . 2 3 . . 6 1 1 1 Flight 2 | . . . . . . . . 1 . . 1 . . . Utility 42 | 1 3 . 9 . 1 . 4 7 2 . 10 4 . 1 Device 11 | . . . 3 . . . 2 . . . 4 1 . 1 Storage 5 | 1 1 . 1 . 1 . . . . . . 1 . . Processor 9 | . . . 1 . . . 2 2 . . 3 1 . . Hackware 8 | . . . . . . . . 4 2 . 2 . . . Protection 9 | . 2 . 4 . . . . 1 . . 1 1 . . Artifact . | . . . . . . . . . . . . . . . Weapon 28 | 2 1 . 13 . . . 2 2 . . 7 1 . . Energy Gun 7 | 1 . . 1 . . . . 1 . . 4 . . . Energy Cannon . | . . . . . . . . . . . . . . . Ballistic Gun 12 | 1 1 . 7 . . . 1 . . . 2 . . . Ballistic Cannon . | . . . . . . . . . . . . . . . Launcher 4 | . . . 1 . . . 1 1 . . . 1 . . Special Weapon . | . . . . . . . . . . . . . . . Impact Weapon 5 | . . . 4 . . . . . . . 1 . . . Slashing Weapon . | . . . . . . . . . . . . . . . Piercing Weapon . | . . . . . . . . . . . . . . . Special Melee Weapon . | . . . . . . . . . . . . . . . Unidentified Prototypes 4 | . . . . . . . . 2 . . 1 1 . . Parts Lost 50 | . 1 6 7 . . . 2 16 . . 8 5 3 2 Power 6 | . . 1 1 . . . . 1 . . 1 1 1 . Propulsion 18 | . 1 2 1 . . . 1 6 . . 2 3 1 1 Utility 14 | . . 1 3 . . . 1 6 . . 2 . 1 . Weapon 12 | . . 2 2 . . . . 3 . . 3 1 . 1 Highest Loss Streak 10 | . 1 6 3 . . . 2 10 . . 8 2 2 2 To Critical Strikes . | . . . . . . . . . . . . . . . Average Slot Usage (%) 82 | . 91 77 89 88 88 88 91 74 37 46 85 80 86 89 Engine 5 | . 14 11 10 11 11 11 9 4 . . . 2 4 6 Core 1 | . . . . . . . . . . . 4 1 . . Wheel 3 | . 23 19 13 . . . . . . . . . 2 . Hover 11 | . . . 5 22 22 22 24 15 . . 10 7 12 13 Device 8 | . . . 9 11 11 11 14 9 . . 6 11 6 11 Storage 4 | . 14 11 10 11 11 11 . . . . . . 6 6 Processor 10 | . . . 7 11 11 11 17 12 7 7 9 12 13 13 Hackware 14 | . . . . . . . . 6 29 38 33 26 20 20 Protection 7 | . 10 11 9 11 11 11 9 8 . . 5 6 6 6 Energy Gun 1 | . 11 . 1 . . . . . . . 4 . . . Ballistic Gun 3 | . 16 22 10 . . . 2 3 . . 2 . . . Launcher 1 | . . . 1 . . . 4 2 . . . . 6 4 Impact Weapon 5 | . . . 8 11 11 11 9 6 . . 2 6 6 6 Peak Build Rating 64 | 6 8 8 20 17 19 19 32 39 21 21 64 64 46 49 Average Rating 29 | 4 6 6 13 17 18 19 28 28 16 21 50 45 40 46 On Entrance 21 | . 6 8 . 17 17 19 19 32 13 21 21 64 46 41 Naked Turns 19 | . . 7 12 . . . . . . . . . . . Heaviest Build 30 | 13 25 25 26 17 17 17 18 22 . . 16 27 28 30 Greatest Support 31 | 26 26 26 23 16 17 17 25 25 3 3 31 31 14 16 Greatest Overweight (x) 5 | . 1 . 2 1 1 . 1 1 . . 1 5 2 2 Average Overweight (x) . | . . . . 1 . . . . . . . 1 1 1 Largest Inventory Capacity 10 | 8 10 10 8 8 8 8 8 5 5 5 5 8 8 8 Average Capacity 6 | 7 9 9 7 8 8 8 5 5 5 5 5 5 8 8 Most Carried 8 | 1 5 5 8 7 8 8 7 5 5 5 5 8 8 8 Average Carried 5 | . 1 5 6 6 7 8 4 4 5 5 3 5 7 7 Final Capacity 10 | 8 10 5 8 8 8 8 5 5 5 5 5 8 8 8 Final Carried 8 | 1 5 5 6 7 8 8 5 5 5 5 5 8 7 8 Class Distribution -------------------- 32% | Hacker-Mutant 21% | Mutant 19% | Scavenger-Mutant 9% | Hacker-Assassin 8% | Hacker-Scout 6% | Scout Dominant Class ---------------- Mutant | -10/Materials Mutant | -10/Mines Scavenger-Mutant | -9/Materials Mutant | -9/Mines Scavenger-Mutant | -9/Exiles Scavenger-Mutant | -8/Mines Mutant | -8/Materials Scout | -7/Factory Hacker-Mutant | -7/Lower Caves Hacker-Mutant | -7/Lower Caves Hacker-Mutant | -6/Factory Hacker-Assassin | -6/Extension Hacker-Mutant | -6/Cetus Hacker-Mutant | -6/Archives Resources | -11 -10 -10 -9 -9 -9 -8 -8 -7 -7 -7 -6 -6 -6 -6 ----------- Run | Yrd Mat Min Mat Min Exi Min Mat Fac Low Low Fac Ext Cet Arc Matter Collected 1875 | 260 35 . 485 67 23 10 . 146 126 . 373 298 52 . Remotely . | . . . . . . . . . . . . . . . Salvage Created 2678 | . 133 . 904 . 73 . . 289 . . 570 167 514 28 Parts 151 | . 9 . 68 . 3 . . 25 . . 22 2 18 4 Haulers Intercepted 4 | . 1 . . . . . . 1 . . 2 . . . Recyclers Shooed 1 | . . . 1 . . . . . . . . . . . Parts Field Recycled . | . . . . . . . . . . . . . . . Retrieved Matter . | . . . . . . . . . . . . . . . Parts Self-Destructed . | . . . . . . . . . . . . . . . Prevented . | . . . . . . . . . . . . . . . Kills | -11 -10 -10 -9 -9 -9 -8 -8 -7 -7 -7 -6 -6 -6 -6 ------- Run | Yrd Mat Min Mat Min Exi Min Mat Fac Low Low Fac Ext Cet Arc Combat Hostiles Destroyed 48 | . . . 25 . . . . 5 . . 10 2 6 . Melee 6 | . . . 5 . . . . . . . 1 . . . Guns 18 | . . . 9 . . . . 1 . . 8 . . . AOE 13 | . . . 8 . . . . 4 . . 1 . . . Classes Destroyed 12 | . 5 . 5 . . . . 1 . . 1 . . . Worker 9 | . 1 . 5 . . . . 2 . . 1 . . . Builder 6 | . . . 3 . . . . 1 . . 1 1 . . Tunneler 3 | . 1 . 1 . . . . 1 . . . . . . Hauler 4 | . 1 . . . . . . 1 . . 2 . . . Recycler 1 | . . . . . . . . 1 . . . . . . Operator 6 | . 1 . . . . . . 2 . . 1 1 . 1 Watcher 9 | . 1 . 3 . . . . 1 . . 1 1 2 . Swarmer 21 | . . . 10 . . . . 4 . . 7 . . . Grunt 10 | . . . 8 . . . . . . . . 2 . . Brawler 1 | . . . 1 . . . . . . . . . . . Sentry 7 | . . . 6 . . . . 1 . . . . . . Programmer 3 | . . . . . . . . . . . 3 . . . Cetus Guard 6 | . . . . . . . . . . . . . 6 . Best Kill Streak 13 | . 3 . 13 . . . . 10 . . 9 1 4 1 Combat Bots Only 8 | . . . 8 . . . . 5 . . 7 1 3 . Max Kills in Single Turn 3 | . 2 . 3 . . . . 2 . . 1 1 1 1 Gunslinging . | . . . . . . . . . . . . . . . Exploded 2 | . . . 2 . . . . 2 . . 1 . . . Melee 1 | . . . 1 . . . . . . . 1 . . . Uniques/NPCs Destroyed . | . . . . . . . . . . . . . . . Combat | -11 -10 -10 -9 -9 -9 -8 -8 -7 -7 -7 -6 -6 -6 -6 -------- Run | Yrd Mat Min Mat Min Exi Min Mat Fac Low Low Fac Ext Cet Arc Hostile Shots Fired 674 | . . 19 155 . . 6 27 206 17 1 128 78 30 7 Missed 240 | . . 1 44 . . 1 11 82 6 1 46 37 11 . Damage Taken 6263 | . 132 749 1298 . . 38 255 1272 88 . 1391 491 378 171 Core 2038 | . . 200 291 . . 10 48 531 88 . 437 212 147 74 Absorbed by Shields 173 | . . . . . . . . . . . . 44 129 . Redirected to Shielding 144 | . 24 . 33 . . 4 34 8 . . 25 5 3 8 Regen/Repaired (Parts) 55 | . . . 33 . . . . . . . 22 . . . Core Remaining (%) 49 | 100 . 20 . . . 24 91 . . 11 . . . . Volleys Fired 166 | . 13 4 46 . . . . 37 . . 59 . 7 . Largest 2 | . 2 2 2 . . . . 1 . . 2 . 1 . Hottest 120 | . 70 40 76 . . . . 55 . . 120 . 43 . Shots Fired 225 | . 26 8 63 . . . . 37 . . 84 . 7 . Gun 198 | . 26 8 52 . . . . 28 . . 84 . . . Cannon . | . . . . . . . . . . . . . . . Launcher 27 | . . . 11 . . . . 9 . . . . 7 . Special . | . . . . . . . . . . . . . . . Kinetic 125 | . 13 8 37 . . . . 12 . . 55 . . . Thermal 28 | . 13 . 15 . . . . . . . . . . . Explosive 20 | . . . 11 . . . . 9 . . . . . . Electromagnetic 52 | . . . . . . . . 16 . . 29 . 7 . Robot Hit Streak 6 | . 6 3 6 . . . . 6 . . 6 . 3 . Robot Miss Streak 4 | . 2 2 3 . . . . 3 . . 4 . . . Penetration Max . | . . . . . . . . . . . . . . . Secondary Targets 2 | . . . 1 . . . . . . . 1 . . . Max Gunslinging Chain 1 | . . . 1 . . . . . . . 1 . . . Shots Hit Robots 189 | . 17 5 60 . 5 . . 24 . . 59 15 3 1 Core Hits 110 | . 8 . 43 . 1 . . 25 . . 23 3 6 1 Critical Kills 7 | . . . 3 . 1 . . 2 . . . 1 . . Critical Parts Destroyed 7 | . . . 4 . . . . . . . 1 2 . . Critical Strikes 18 | . . . 11 . 1 . . 2 . . 1 3 . . Burn 4 | . . . 4 . . . . . . . . . . . Destroy 1 | . . . 1 . . . . . . . . . . . Smash 13 | . . . 6 . 1 . . 2 . . 1 3 . . Melee Attacks 146 | . . . 42 2 5 2 12 10 . . 25 46 . 2 Impact 146 | . . . 42 2 5 2 12 10 . . 25 46 . 2 Slashing . | . . . . . . . . . . . . . . . Piercing . | . . . . . . . . . . . . . . . Sneak Attacks 9 | . . . 2 . . . . 3 . . . 3 . 1 Combat Hostiles 3 | . . . 1 . . . . . . . . 2 . . Follow-up Attacks . | . . . . . . . . . . . . . . . Damage Inflicted 6964 | . 201 77 2026 . 425 . . 1132 . . 1485 740 753 125 Guns 2223 | . 201 77 541 . . . . 299 . . 1105 . . . Cannons . | . . . . . . . . . . . . . . . Explosions 2198 | . . . 799 . . . . 536 . . 110 . 753 . Melee 2543 | . . . 686 . 425 . . 297 . . 270 740 . 125 Ramming . | . . . . . . . . . . . . . . . Kinetic 1359 | . 75 77 395 . . . . 116 . . 696 . . . Thermal 382 | . 126 . 146 . . . . . . . 110 . . . Explosive 1335 | . . . 799 . . . . 536 . . . . . . Electromagnetic 1345 | . . . . . . . . 183 . . 409 . 753 . Impact 2543 | . . . 686 . 425 . . 297 . . 270 740 . 125 Slashing . | . . . . . . . . . . . . . . . Piercing . | . . . . . . . . . . . . . . . Highest Corruption 9 | . . . . . . . . 4 4 4 9 9 9 9 Average Corruption 7 | . . . . . . . . 4 4 4 7 9 9 7 Corruption Purged 3 | . . . . . . . . . . . . . . 3 Corruption Blocked 7 | . . . . . . . . . . . 1 . 6 . Effects 70 | . . . . . . . . 1 4 1 22 29 11 2 Message Errors 15 | . . . . . . . . . 1 1 3 6 3 1 Matter Fused 20 | . . . . . . . . . 2 . 6 9 3 . Heat Flow Errors 8 | . . . . . . . . . . . 4 3 1 . Energy Discharges 9 | . . . . . . . . . . . 4 3 2 . Parts Rejected 2 | . . . . . . . . . . . . 2 . . Data Loss (minor) 10 | . . . . . . . . 1 1 . 1 4 2 1 Data Loss (major) 3 | . . . . . . . . . . . 3 . . . Misfires 1 | . . . . . . . . . . . 1 . . . Alerts 2 | . . . . . . . . . . . . 2 . . Overload Shots . | . . . . . . . . . . . . . . . Overflow Damage 714 | . . . 191 . 143 . . 26 . . 88 240 26 . Projectiles . | . . . . . . . . . . . . . . . Explosions 52 | . . . . . . . . 26 . . . . 26 . Melee 662 | . . . 191 . 143 . . . . . 88 240 . . Knockbacks 13 | . . . 2 . 1 . . . . . 4 6 . . Impact 13 | . . . 2 . 1 . . . . . 4 6 . . Kinetic . | . . . . . . . . . . . . . . . Secondary . | . . . . . . . . . . . . . . . Self-Inflicted Damage 99 | . . . 42 . . . . 23 . . 34 . . . Shots 4 | . . . 2 . . . . 1 . . 1 . . . Rammed 1 | . . . . . . . . 1 . . . . . . Targets Rammed 1 | . . . . . . . . 1 . . . . . . Kicked . | . . . . . . . . . . . . . . . Crushed . | . . . . . . . . . . . . . . . Highest Temperature 239 | . 60 15 117 . . . . 40 . . 239 198 72 . Average Temperature 38 | . 26 7 43 . . . . 12 . . 46 99 42 . Received Heat Transfer 1049 | . . 15 318 . . . 135 285 . . 39 203 18 36 Siege Activations . | . . . . . . . . . . . . . . . Robots Corrupted 17 | . . . 4 . 1 . . . . . 1 4 7 . Combat Hostiles 12 | . . . 3 . 1 . . . . . . 2 6 . Parts Fried 17 | . . . 6 . . . . . . . 3 4 4 . Impact Corruptions 35 | . . . 11 . 7 . . . . . 6 11 . . Robots Melted . | . . . . . . . . . . . . . . . Combat Hostiles . | . . . . . . . . . . . . . . . Parts Melted 2 | . . . 1 . . . . . . . 1 . . . Heat Transferred 1136 | . 370 . 666 . . . . . . . 100 . . . Parts Sabotaged . | . . . . . . . . . . . . . . . Parts Stolen . | . . . . . . . . . . . . . . . Parts Stripped . | . . . . . . . . . . . . . . . Power Chain Reactions 1 | . . . . . . . . . . . 1 . . . Alert | -11 -10 -10 -9 -9 -9 -8 -8 -7 -7 -7 -6 -6 -6 -6 ------- Run | Yrd Mat Min Mat Min Exi Min Mat Fac Low Low Fac Ext Cet Arc Peak Influence 698 | . 82 31 698 210 . 176 266 449 . . 244 616 418 173 Initial 291 | . . 31 . 209 . . 68 120 . . 41 49 291 167 Average 245 | . 41 14 406 209 . 94 149 192 . . 129 319 384 144 Maximum Alert Level 2 | . . . 2 1 . . 1 2 . . 1 2 2 . Low Security (%) 50 | 100 100 100 26 . . 100 62 70 . . 89 27 . 100 Level 1 25 | . . . 13 100 . . 37 19 . . 10 32 51 . Level 2 24 | . . . 60 . . . . 9 . . . 39 48 . Level 3 . | . . . . . . . . . . . . . . . Level 4 . | . . . . . . . . . . . . . . . Level 5 . | . . . . . . . . . . . . . . . High Security . | . . . . . . . . . . . . . . . Max Security . | . . . . . . . . . . . . . . . Squads Dispatched 16 | . 1 . 2 . . . 1 6 . . 4 2 . . Investigation 7 | . . . 2 . . . 1 2 . . 1 1 . . Extermination 2 | . . . . . . . . . . . 2 . . . Reinforcement 7 | . 1 . . . . . . 4 . . 1 1 . . Assault . | . . . . . . . . . . . . . . . Garrison . | . . . . . . . . . . . . . . . Intercept . | . . . . . . . . . . . . . . . Searches Triggered . | . . . . . . . . . . . . . . . Construction Impeded 2 | . . . . . . . . 1 . . . 1 . . Haulers Reinforced . | . . . . . . . . . . . . . . . Active Scanning Responses . | . . . . . . . . . . . . . . . Cargo Convoy Interrupts . | . . . . . . . . . . . . . . . Stealth | -11 -10 -10 -9 -9 -9 -8 -8 -7 -7 -7 -6 -6 -6 -6 --------- Run | Yrd Mat Min Mat Min Exi Min Mat Fac Low Low Fac Ext Cet Arc Distress Signals 14 | . 1 . 5 . . . 1 3 . . . 2 2 . Communications Jammed . | . . . . . . . . . . . . . . . Distress Signals . | . . . . . . . . . . . . . . . Times Spotted 174 | . 3 2 47 . . 8 21 29 1 3 20 30 9 1 Peak Tracking Total 12 | . 3 2 10 . . 4 12 10 1 7 5 6 5 1 Tactical Retreats 25 | . 1 . 6 . . 2 3 4 . . 4 4 1 . Traps | -11 -10 -10 -9 -9 -9 -8 -8 -7 -7 -7 -6 -6 -6 -6 ------- Run | Yrd Mat Min Mat Min Exi Min Mat Fac Low Low Fac Ext Cet Arc Traps Triggered 9 | . 1 . 2 . . . . . . . 1 5 . . Indirectly . | . . . . . . . . . . . . . . . Trap Hack Attempts . | . . . . . . . . . . . . . . . Triggered . | . . . . . . . . . . . . . . . Disarmed 6 | . . . . . . . . . . . 6 . . . Reprogrammed . | . . . . . . . . . . . . . . . Reused . | . . . . . . . . . . . . . . . Traps Extracted . | . . . . . . . . . . . . . . . Installed . | . . . . . . . . . . . . . . . Triggered . | . . . . . . . . . . . . . . . Machines | -11 -10 -10 -9 -9 -9 -8 -8 -7 -7 -7 -6 -6 -6 -6 ---------- Run | Yrd Mat Min Mat Min Exi Min Mat Fac Low Low Fac Ext Cet Arc Machines Disabled 5 | . . . 1 . . . . 1 . . 1 2 . . Max in Single Turn 1 | . . . 1 . . . . 1 . . 1 . . . Garrison Access 1 | . . . . . . . . . . . 1 . . . Machines Repaired . | . . . . . . . . . . . . . . . Machines Dismantled . | . . . . . . . . . . . . . . . Machines Sabotaged . | . . . . . . . . . . . . . . . Overloaded Fab Kills . | . . . . . . . . . . . . . . . Hacking | -11 -10 -10 -9 -9 -9 -8 -8 -7 -7 -7 -6 -6 -6 -6 --------- Run | Yrd Mat Min Mat Min Exi Min Mat Fac Low Low Fac Ext Cet Arc Machines Accessed 46 | . 4 . 9 . 1 . 2 7 . . 7 13 3 . Terminals 38 | . 3 . 8 . . . 2 5 . . 4 13 3 . Fabricators 2 | . . . . . . . . 1 . . 1 . . . Repair Stations 3 | . . . 1 . . . . 1 . . 1 . . . Recycling Units 1 | . 1 . . . . . . . . . . . . . Scanalyzers . | . . . . . . . . . . . . . . . Garrison Access 1 | . . . . . . . . . . . 1 . . . Total Hacks 133 | . 9 . 33 . 1 . 10 29 . . 23 19 9 . Successful 80 | . 7 . 15 . 1 . 6 20 . . 14 12 5 . Failed 53 | . 2 . 18 . . . 4 9 . . 9 7 4 . Catastrophic 6 | . . . 2 . . . 1 1 . . . 2 . . Database Lockouts . | . . . . . . . . . . . . . . . Manual 48 | . 7 . 17 . 1 . 3 15 . . 5 . . . Terminals 115 | . 8 . 30 . . . 10 23 . . 16 19 9 . Fabricators 8 | . . . . . . . . 4 . . 4 . . . Repair Stations 7 | . . . 3 . . . . 2 . . 2 . . . Recycling Units 1 | . 1 . . . . . . . . . . . . . Scanalyzers . | . . . . . . . . . . . . . . . Garrison Access 1 | . . . . . . . . . . . 1 . . . Terminal Hacks 47 | . 2 . 7 . 1 . 3 11 . . 6 12 5 . Record 4 | . . . . . . . . . . . . . 4 . Part Schematic 1 | . . . . . . . . 1 . . . . . . Prototype ID Bank 3 | . . . 2 . . . . 1 . . . . . . Open Door 12 | . . . . . . . . . . . . 11 1 . Garrison Index 1 | . . . . . . . . . . . 1 . . . Alert Level 4 | . . . 1 . . . 1 2 . . . . . . Unreport Threat 2 | . . . 1 . . . . 1 . . . . . . Locate Traps 5 | . . . 2 . . . . 1 . . 1 1 . . Disarm Traps 1 | . . . . . . . . . . . 1 . . . Surveillance Status 1 | . . . . . . . . . . . 1 . . . Patrol Status 2 | . . . . . . . 1 1 . . . . . . Registered Components 2 | . . . . . . . . 1 . . 1 . . . Zone Layout 8 | . 2 . 1 . . . 1 3 . . 1 . . . Derelict Proto ID Bank 1 | . . . . . 1 . . . . . . . . . Fabricator Hacks 5 | . . . . . . . . 2 . . 3 . . . Network Status 2 | . . . . . . . . 1 . . 1 . . . Load Schematic 2 | . . . . . . . . 1 . . 1 . . . Build 1 | . . . . . . . . . . . 1 . . . Repair Station Hacks 4 | . . . 2 . . . . . . . 2 . . . Scan Component 2 | . . . 1 . . . . . . . 1 . . . Repair 2 | . . . 1 . . . . . . . 1 . . . Recycling Unit Hacks 1 | . 1 . . . . . . . . . . . . . Report Inventory 1 | . 1 . . . . . . . . . . . . . Scanalyzer . | . . . . . . . . . . . . . . . Garrison Access Hacks 1 | . . . . . . . . . . . 1 . . . Seal Access 1 | . . . . . . . . . . . 1 . . . Unauthorized Hacks 22 | . 4 . 6 . . . 3 7 . . 2 . . . Terminals 21 | . 4 . 6 . . . 3 6 . . 2 . . . Track 6 | . 1 . 3 . . . 1 1 . . . . . . Assimilate 1 | . . . . . . . . 1 . . . . . . Botnet 10 | . 2 . 2 . . . 1 3 . . 2 . . . Operators 4 | . 1 . 1 . . . 1 1 . . . . . . Fabricators 1 | . . . . . . . . 1 . . . . . . Recompile 1 | . . . . . . . . 1 . . . . . . Repair Stations . | . . . . . . . . . . . . . . . Recycling Units . | . . . . . . . . . . . . . . . Scanalyzers . | . . . . . . . . . . . . . . . Garrison Access . | . . . . . . . . . . . . . . . Data Cores Recovered 2 | . . . . . . . . . . . 1 1 . . Used 1 | . . . . . . . . . . . 1 . . . Hacking Detections 26 | . 3 . 8 . . . 1 6 . . 5 2 1 . Full Trace Events 6 | . . . 3 . . . 1 1 . . 1 . . . Feedback Events . | . . . . . . . . . . . . . . . Feedback Blocked . | . . . . . . . . . . . . . . . Robot Schematics Acquired . | . . . . . . . . . . . . . . . Robots Built . | . . . . . . . . . . . . . . . Authchips . | . . . . . . . . . . . . . . . Time . | . . . . . . . . . . . . . . . Total Robot Build Rating . | . . . . . . . . . . . . . . . Part Schematics Acquired 1 | . . . . . . . . 1 . . . . . . Parts Built 2 | . . . . . . . . . . . 2 . . . Authchips . | . . . . . . . . . . . . . . . Time 36 | . . . . . . . . . . . 36 . . . Total Part Build Rating 6 | . . . . . . . . . . . 6 . . . Parts Repaired 2 | . . . 1 . . . . . . . 1 . . . Time 76 | . . . 26 . . . . . . . 50 . . . Parts Recycled . | . . . . . . . . . . . . . . . Recycled Matter . | . . . . . . . . . . . . . . . Retrieved Matter . | . . . . . . . . . . . . . . . Retrieved Components . | . . . . . . . . . . . . . . . Parts Scanalyzed . | . . . . . . . . . . . . . . . Part Schematics Acquired . | . . . . . . . . . . . . . . . Parts Damaged . | . . . . . . . . . . . . . . . Bothacking | -11 -10 -10 -9 -9 -9 -8 -8 -7 -7 -7 -6 -6 -6 -6 ------------ Run | Yrd Mat Min Mat Min Exi Min Mat Fac Low Low Fac Ext Cet Arc Used RIF Installer . | . . . . . . . . . . . . . . . Robots Hacked . | . . . . . . . . . . . . . . . Non-combat . | . . . . . . . . . . . . . . . Combat . | . . . . . . . . . . . . . . . Robot Hacks Applied . | . . . . . . . . . . . . . . . Relay Couplers Released 3 | . . . . . . . . . . . 3 . . . Programmers 3 | . . . . . . . . . . . 3 . . . Fabnet Peak Effective % . | . . . . . . . . . . . . . . . Robots Rewired 15 | . . . . . 4 . . . . . . 11 . . Allies Hacked . | . . . . . . . . . . . . . . . Hacks Repelled . | . . . . . . . . . . . . . . . Allies | -11 -10 -10 -9 -9 -9 -8 -8 -7 -7 -7 -6 -6 -6 -6 -------- Run | Yrd Mat Min Mat Min Exi Min Mat Fac Low Low Fac Ext Cet Arc Total Allies 35 | . . 3 . . 4 . . 1 . . . 27 . . Largest Group 10 | . . 3 . . 4 4 . 1 . . . 10 10 3 Highest-Rated Group 409 | . . 40 . . 58 58 . 10 . . . 409 409 215 Highest-Rated Ally 159 | . . 16 . . 21 21 . 10 . . . 159 159 159 Total Orders . | . . . . . . . . . . . . . . . Ally Attacks 226 | . . 4 . . . 9 . . . . . 181 30 2 Total Damage 4780 | . . 59 . . . 112 . . . . . 3727 861 21 Kills 36 | . . . . . . 4 . . . . . 30 2 . Allies Corrupted . | . . . . . . . . . . . . . . . Allies Melted . | . . . . . . . . . . . . . . . Intel | -11 -10 -10 -9 -9 -9 -8 -8 -7 -7 -7 -6 -6 -6 -6 ------- Run | Yrd Mat Min Mat Min Exi Min Mat Fac Low Low Fac Ext Cet Arc Robot Analysis Total . | . . . . . . . . . . . . . . . Derelict Logs Recovered 4 | . . . . 2 . . . . 2 . . . . . Drone Launches . | . . . . . . . . . . . . . . . Drone Recoveries . | . . . . . . . . . . . . . . . Exploration | -11 -10 -10 -9 -9 -9 -8 -8 -7 -7 -7 -6 -6 -6 -6 ------------- Run | Yrd Mat Min Mat Min Exi Min Mat Fac Low Low Fac Ext Cet Arc Turns Passed 5670 | 46 237 51 1047 310 411 75 307 538 301 28 1074 874 334 37 Spaces Moved 5534 | 42 196 49 700 260 427 90 326 760 580 55 1288 484 258 19 Core 974 | 4 . 14 26 . . . . 46 580 55 225 24 . . Treads 8 | . . . 8 . . . . . . . . . . . Legs . | . . . . . . . . . . . . . . . Wheels 922 | 38 196 35 560 . . . . . . . 27 25 41 . Hover 3436 | . . . 106 260 427 90 326 522 . . 1034 435 217 19 Flight 194 | . . . . . . . . 192 . . 2 . . . Fastest Speed 35 | 50 90 50 50 116 56 56 52 35 50 50 35 52 95 116 Average Speed 72 | 87 94 79 96 116 71 56 58 47 50 50 55 109 115 122 Slowest Speed 300 | 100 115 100 200 116 116 56 116 111 50 50 100 300 121 176 Overloaded Moves . | . . . . . . . . . . . . . . . Propulsion Burnouts . | . . . . . . . . . . . . . . . Robots Hopped . | . . . . . . . . . . . . . . . Cave-ins Triggered . | . . . . . . . . . . . . . . . Exploration Rate (%) 44 | 4 40 20 82 69 90 23 37 23 73 10 29 62 83 24 Regions Visited 14 Branch Regions 9 Pre-discovered Areas 1 | . . . . 1 . . . . . . . . . . Known Exits Taken 11 | . . . 1 1 1 1 1 1 1 1 1 1 1 . Unknown Exits Taken 3 | 1 1 1 . . . . . . . . . . . . Scrap Searched 4 | . . . . 1 . . . . 2 1 . . . . Spaces Dug 50 | . . . 15 1 . . 8 4 . . 12 9 . 1 Terrain Destroyed 142 | . . . 40 1 . . 8 71 . . 12 9 . 1 Melee 44 | . . . 9 1 . . 8 4 . . 12 9 . 1 Projectile . | . . . . . . . . . . . . . . . AOE 98 | . . . 31 . . . . 67 . . . . . . Terrain Rammed . | . . . . . . . . . . . . . . . Walls Destroyed . | . . . . . . . . . . . . . . . Machines Disabled . | . . . . . . . . . . . . . . . Actions | -11 -10 -10 -9 -9 -9 -8 -8 -7 -7 -7 -6 -6 -6 -6 --------- Run | Yrd Mat Min Mat Min Exi Min Mat Fac Low Low Fac Ext Cet Arc Total 6675 | 48 224 53 924 264 525 111 417 881 589 54 1527 746 284 28 Wait 490 | . 4 . 70 2 29 18 67 53 8 . 111 106 18 4 Move 5520 | 41 195 48 699 259 426 89 325 759 579 54 1287 483 257 19 Hop . | . . . . . . . . . . . . . . . Pick Up 37 | 1 3 . 14 1 2 1 1 3 . . 6 4 . 1 Fast Attach 67 | 6 4 . 13 . 1 . 2 10 2 . 19 7 1 2 Attach 23 | . . . 9 . . . 4 2 . . 5 2 1 . Detach 20 | . 2 . 5 . 1 . 1 3 . . 6 2 . . Swap 25 | . 1 . 15 . 1 . 3 1 . . 3 1 . . Drop 29 | . 2 1 11 . 3 1 2 2 . . 6 1 . . Fire 166 | . 13 4 46 . . . . 37 . . 59 . 7 . Melee 146 | . . . 42 2 5 2 12 10 . . 25 46 . 2 Ram 1 | . . . . . . . . 1 . . . . . . Kick . | . . . . . . . . . . . . . . . Crush . | . . . . . . . . . . . . . . . Escape Stasis 65 | . . . . . . . . . . . . 65 . . Rewire 86 | . . . . . 57 . . . . . . 29 . . Trap . | . . . . . . . . . . . . . . . Miscellaneous . | . . . . . . . . . . . . . . . Route ------- -11/Scrapyard -10/Materials (discovered 2 exits: *Mat / [*Min]) -10/Mines -9/Materials (discovered 5 exits: *Mat x3 / *Min x2) -9/Mines (discovered 3 exits: *Mat x2 / *Exi) -9/Exiles -8/Mines -8/Materials -7/Factory -7/Lower Caves -7/Lower Caves -6/Factory (discovered 2 exits: *Ext x2) -6/Extension (discovered 2 exits: *Fac / *Cet) -6/Cetus (discovered 2 exits: *Fac / *Arc) -6/Archives History --------- Turn | Location | Event 18 | -11/Scrapyard | Discovered new exit (range 15) 47 | -11/Scrapyard | Entered Materials 163 | -10/Materials | Discovered new exit (range 5) 268 | -10/Materials | Discovered new exit (range 15) 284 | -10/Materials | Entered Mines 285 | -10/Mines | Assembled infested the area 290 | -10/Mines | Assisted by bots powering up and referring to "LRC-V3" 316 | -10/Mines | Build established: Mutant 330 | -10/Mines | Core integrity fell below 50% 333 | -10/Mines | Discovered new exit (range 5) 335 | -10/Mines | Entered Materials 335 | -9/Materials | Evolved 2 slots: Utility x2 342 | -9/Materials | Lost 3 allies 359 | -9/Materials | Lost 6 parts (1p2n1u2w) 588 | -9/Materials | Discovered new exit (range 16) 616 | -9/Materials | Build established: Scavenger-Mutant 792 | -9/Materials | Destroyed 8 combat bots 925 | -9/Materials | Discovered new exit (range 9) 933 | -9/Materials | Identified exit to Materials 999 | -9/Materials | Repaired Wheel 1113 | -9/Materials | Core integrity fell below 50% 1140 | -9/Materials | Lost 3 parts (1p1u1w) 1298 | -9/Materials | Discovered new exit (range 14) 1314 | -9/Materials | Discovered exit to Materials (range 16) 1369 | -9/Materials | Discovered new exit (range 12) 1381 | -9/Materials | Identified exit to Mines 1382 | -9/Materials | Entered Mines 1395 | -9/Mines | Met a Derelict bent on vengeance 1452 | -9/Mines | Learned Materials security intel 1480 | -9/Mines | Found a hidden stash of uninstalled traps 1496 | -9/Mines | Learned location of Storage (-7) 1554 | -9/Mines | Build established: Mutant 1602 | -9/Mines | Discovered exit to Materials (range 6) 1662 | -9/Mines | Discovered exit to Materials (range 14) 1672 | -9/Mines | Identified exit to Exiles 1692 | -9/Mines | Entered Exiles 1692 | -9/Exiles | Found Exiles lab destroyed 1895 | -9/Exiles | Opened EX-Vault 2069 | -9/Exiles | Discovered new exit (range 10) 2074 | -9/Exiles | Identified exit to Mines 2103 | -9/Exiles | Entered Mines 2103 | -8/Mines | Accompanied by 4 allies 2164 | -8/Mines | Build established: Scavenger-Mutant 2173 | -8/Mines | Discovered exit to Materials (range 10) 2178 | -8/Mines | Entered Materials 2178 | -8/Materials | Evolved 2 slots: Propulsion x1, Utility x1 2483 | -8/Materials | Discovered new exit (range 5) 2485 | -8/Materials | Identified exit to Factory 2485 | -8/Materials | Entered Factory 2485 | -7/Factory | Evolved 2 slots: Utility x2 2725 | -7/Factory | Build established: Scout 2864 | -7/Factory | Lost 10 parts (1p3n5u1w) 2932 | -7/Factory | Discovered new exit (range 10) 2936 | -7/Factory | Identified exit to Lower Caves 3000 | -7/Factory | Core integrity fell below 50% 3023 | -7/Factory | Entered Lower Caves 3024 | -7/Lower Caves | Encountered a Warlord checkpoint 3031 | -7/Lower Caves | Lost 6 parts (3n1u2w) 3102 | -7/Lower Caves | Build established: Hacker-Mutant 3225 | -7/Lower Caves | Spotted B-75 Beast 3251 | -7/Lower Caves | Core integrity fell below 20% 3318 | -7/Lower Caves | Discovered new exit (range 7) 3321 | -7/Lower Caves | Identified exit to Lower Caves 3324 | -7/Lower Caves | Entered another Lower Caves area 3343 | -7/Lower Caves | Discovered new exit (range 14) 3350 | -7/Lower Caves | Attracted the attention of an 0b10 outpost 3351 | -7/Lower Caves | Identified exit to Factory 3352 | -7/Lower Caves | Entered Factory 3352 | -6/Factory | Evolved 2 slots: Utility x2 3353 | -6/Factory | Identified exit to Extension 3840 | -6/Factory | Destroyed 7 combat bots 3864 | -6/Factory | Lost 8 parts (1p2n2u3w) 4062 | -6/Factory | Fabricated Imp. Sensor Array? 4092 | -6/Factory | Core integrity fell below 50% 4302 | -6/Factory | Repaired Adv. Terrain Scanner 4426 | -6/Factory | Entered Extension 4446 | -6/Extension | Rescued a captive Derelict 4551 | -6/Extension | Rescued a captive Derelict 4553 | -6/Extension | Rescued a captive Derelict 4554 | -6/Extension | Rescued a captive Derelict 4608 | -6/Extension | Rescued a captive Derelict 4661 | -6/Extension | Rescued a captive Derelict 4667 | -6/Extension | Rescued a captive Derelict 4691 | -6/Extension | Rescued a captive Derelict 4720 | -6/Extension | Rescued a captive Derelict 4721 | -6/Extension | Rescued a captive Derelict 4723 | -6/Extension | Spotted B-75 Beast 4798 | -6/Extension | Lost 9 allies 4801 | -6/Extension | Rescued a captive Derelict 4828 | -6/Extension | Rescued a captive Derelict 4828 | -6/Extension | Rescued a captive Derelict 4866 | -6/Extension | Rescued A7 4942 | -6/Extension | Lost 6 allies 5050 | -6/Extension | Rescued a captive Derelict 5051 | -6/Extension | Rescued a captive Derelict 5185 | -6/Extension | Build established: Hacker-Assassin 5231 | -6/Extension | Discovered new exit (range 10) 5232 | -6/Extension | Discovered new exit (range 6) 5267 | -6/Extension | Identified exit to Factory 5295 | -6/Extension | Identified exit to Cetus 5300 | -6/Extension | Entered Cetus 5300 | -6/Cetus | Accompanied by 10 allies (A7) 5305 | -6/Cetus | Acquired a Cetus Manufacturing Module code from A7 5316 | -6/Cetus | Spotted Cetus Guard 5316 | -6/Cetus | Spotted Cetus Guard 5320 | -6/Cetus | Spotted Cetus Guard 5323 | -6/Cetus | Destroyed Cetus Guard 5323 | -6/Cetus | Spotted Cetus Guard 5326 | -6/Cetus | Destroyed Cetus Guard 5326 | -6/Cetus | Core integrity fell below 20% 5333 | -6/Cetus | Allies destroyed Cetus Guard 5336 | -6/Cetus | Destroyed Cetus Guard 5360 | -6/Cetus | Lost 3 allies 5393 | -6/Cetus | Escorted A7 to Cetus Mainframe 5430 | -6/Cetus | Discovered new exit (range 15) 5454 | -6/Cetus | Spotted Cetus Guard 5454 | -6/Cetus | Spotted Cetus Guard 5457 | -6/Cetus | Spotted Cetus Guard 5457 | -6/Cetus | Spotted Cetus Guard 5463 | -6/Cetus | Destroyed Cetus Guard 5467 | -6/Cetus | Allies destroyed Cetus Guard 5470 | -6/Cetus | Destroyed Cetus Guard 5473 | -6/Cetus | Destroyed Cetus Guard 5479 | -6/Cetus | Discovered exit to Factory (range 15) 5487 | -6/Cetus | Met Revision 17 5503 | -6/Cetus | Lost 4 allies 5565 | -6/Cetus | Build established: Hacker-Mutant 5631 | -6/Cetus | Identified exit to Archives 5634 | -6/Cetus | Entered Archives 5634 | -6/Archives | Accompanied by 3 allies (A7) 5639 | -6/Archives | Received a hacking code to weaken MAIN.C 5671 | -6/Archives | Destroyed by Y-64 Sentinel with Wave Gun Last Messages --------------- but I have some important business to attend to!" 05640_ A7 warps through subspace. 05641_ Slug penetrates Wall. 05643_ Acquired Imp. System Restoration Module. 05644_ VE-H2H(l) destroyed. 05647_ Imp. Hover Unit destroyed. 05647_ Penetrated by Slug. 05648_ Acquired Gravmag System. 05649_ Imp. System Restoration Module purges 1% system corruption (8%). 05649_ Penetrated by Slug. 05651_ Imp. System Restoration Module purges 1% system corruption (7%). 05653_ Imp. System Restoration Module purges 1% system corruption (6%). 05654_ Acquired Imp. System Shield. 05663_ OHVRA6MZKKPCOVMYCFTMFK 05668_ Penetrated by Slug. 05668_ Imp. Proton Missile Launcher destroyed. 05668_ Archive Hub disabled. Map ----- +----------------------------------------------------+ | | | | | ????????????????????????????????? | | ????????????????????????????????? | | ????????????????????????????????? | | ????????????????????????????????? | | ????????????????????????????????? | | ????????????????????????????????? | | ????????????????????????????????? | | ????????????????????????????????? | | ????????????????????????????????? | | ????????????????????????????????? | | ????????????????????????????????? | | ????????????????????????????????? | | ????????????????????????????????? | | ????????????????????????????????? | | ????????????????????????????????? | | ????????????????????????????????? | | ????????????????????????????????? | | ??############### ???????????? | | ??# * ??????????? | | ??# %= ! ??????????? | | ??# % =%! ??????????? | | ??#####+######### o ???????????? | | ??# Y #"""" ?????????????? | | ??# @ ;"""" ?????????????? | | ??# "" """"o ???????????? | | ??#"""""""""#"V ????????????? | | ??#""""""""""""" ???????????? | | ??#"""""""""#"""" ???????????? | | ??#"""""""""#"""????????????????? | | ????#########????Y??????????????? | | ????????????????????????????????? | | ????????????????????????????????? | | ????????????????????????????????? | | ????????????????????????????????? | | ????????????????????????????????? | | ????????????????????????????????? | | ????????????????????????????????? | | ????????????????????????????????? | | ????????????????????????????????? | | ????????????????????????????????? | | ????????????????????????????????? | | ????????????????????????????????? | | ????????????????????????????????? | | ????????????????????????????????? | | ????????????????????????????????? | | ????????????????????????????????? | | ????????????????????????????????? | | | +----------------------------------------------------+ Best States ------------- Heat Dissipation 37 Energy Generation 18 Energy Capacity 290 Matter Stores 300 Matter Capacity 300 Sight Range 16 Robot Scan Range 19 Terrain Scan Range 20 Terrain Scan Density 110 Corruption Block 8 Armor Coverage 225 Propulsion Shielding 33 Utility Shielding 33 Weapon Shielding 33 Evasion (%) 63 Recoil Reduction 1 Offensive Hacking 20 Defensive Hacking 32 Authchip Count 1 Item Schematics ----------------- Imp. Sensor Array | -7/Factory | Hacked Robot Schematics ------------------ None Fabricated ------------ Imp. Sensor Array | x2 | -6/Factory Alien Tech Used ----------------- None Achievements -------------- None Challenges ------------ None Game ------ Seed CoordinationCoilBiocell Manual? 0 Play Time 01:29:21 Cumulative 202.2 hours Start 2025.05.03 @ 20:49:33 End 2025.05.03 @ 22:19:09 Sessions 1 Manual Loads 0 Difficulty Rogue Special Mode None Game No. 159 Rogue 159 Adventurer 0 Explorer 0 Win Type - Total 4 Types 2/0/1/1/0/0/0/0/0 Lore% 65 Gallery% 70 Achievement% 55 Wizard Run 0 Options --------- Layout 2 ASCII 0 Keyboard 0 Movement Numpad Keybinds 0 Fullscreen 1 Font 16/Terminus Map View 55x47 Zoom Use 0% Tactical HUD 1 Map Filters NONE Filters NONE Steam 1 RUN: 3e2c2ed4-c206-4cf0-abf4-a38097d7a954